fUST/lending_fUST_20250619
["ID","MTS","AMOUNT","RATE_DAILY","PERIOD"]
[366466451,1750271446621,-568.03050721,0.00022191,6]
[366466452,1750271446630,-460.0,0.00022191,6]
[366466453,1750271446640,-460.0,0.00022191,6]
[366466454,1750271446649,-460.0,0.00022191,6]
[366466455,1750271446659,-460.0,0.00022191,6]
[366466456,1750271446668,-460.0,0.00022191,6]
[366466457,1750271446677,-783.74,0.00022191,6]
[366466458,1750271446686,-460.0,0.00022191,6]
[366466459,1750271446695,-1009.55,0.00022191,6]
[366466460,1750271446705,-733.9,0.00022191,6]
[366466461,1750271446715,-460.0,0.00022191,6]
[366466462,1750271446724,-460.0,0.00022191,6]
[366466463,1750271446733,-440.0,0.00022191,6]
[366466464,1750271446742,-460.0,0.00022191,6]
[366466465,1750271446751,-1891.33,0.00022191,6]
[366466466,1750271446760,-300.0,0.00022191,6]
[366466467,1750271446769,-460.0,0.00022191,6]
[366466468,1750271446779,-460.0,0.00022191,6]
[366466469,1750271446788,-460.0,0.00022191,6]
[366466470,1750271446797,-460.0,0.00022191,6]
[366466471,1750271446806,-460.0,0.00022191,6]
[366466472,1750271446815,-460.0,0.00022191,6]
[366466473,1750271446824,-460.0,0.00022191,6]
[366466474,1750271446833,-513.7,0.00022191,6]
[366466475,1750271446843,-460.0,0.00022191,6]
[366466476,1750271446852,-3886.21,0.00022191,6]
[366466477,1750271446862,-460.0,0.00022191,6]
[366466478,1750271446871,-460.0,0.00022191,6]
[366466479,1750271446880,-460.0,0.00022191,6]
[366466480,1750271446889,-460.0,0.00022191,6]
[366466481,1750271446898,-460.0,0.00022191,2]
[366466482,1750271446907,-460.0,0.00022191,6]
[366466483,1750271446916,-1982.07,0.00022191,6]
[366466484,1750271446925,-460.0,0.00022191,6]
[366466485,1750271446939,-460.0,0.00022191,6]
[366466486,1750271446948,-189.37,0.00022191,6]
[366466487,1750271446958,-460.0,0.00022191,6]
[366466488,1750271446967,-460.0,0.00022191,6]
[366466489,1750271446978,-1688.0,0.00022207,2]
[366466490,1750271446987,-5000.0,0.00022207,2]
[366466491,1750271446997,-207.4,0.00022207,2]
[366466492,1750271447007,-421.58463103,0.00022233,2]
[366466493,1750271447017,-1750.456,0.00022262,2]
[366466494,1750271447027,-1028.24398876,0.00022279,6]
[366466495,1750271447037,-293.72741553,0.00022317,2]
[366466496,1750271521011,288.2,0.00018631,2]
[366466497,1750271602306,284.53,0.00018637,2]
[366466498,1750271681845,280.91,0.00018639,2]
[366466499,1750271786302,277.33,0.00018662,2]
[366466500,1750271815508,125846.52822638,0.00023,30]
[366466501,1750271856148,378684.0,0.00022,30]
[366466502,1750271868284,273.8,0.00018439,2]
[366466503,1750271950025,270.32,0.00018269,2]
[366466504,1750271951222,-285.2,0.00019139,2]
[366466505,1750271959942,285.2,0.0001911,2]
[366466506,1750272016917,-151.84589819,0.00019139,2]
[366466507,1750272019481,151.84589819,0.0001911,2]
[366466508,1750272029539,261.31,0.0001827,2]
[366466509,1750272030594,-164.79406157,0.0001914,2]
[366466510,1750272035162,164.79406157,0.0001911,2]
[366466511,1750272108525,255.89,0.00018256,2]
[366466512,1750272109584,-270.17652984,0.00019125,2]
[366466513,1750272122129,270.17652984,0.0001911,2]
[366466514,1750272187810,249.2,0.00018258,2]
[366466515,1750272188787,-288.81150018,0.00019127,2]
[366466516,1750272197239,288.81150018,0.0001911,2]
[366466517,1750272268157,318.94,0.00018253,2]
[366466518,1750272270885,-164.79406157,0.00019122,2]
[366466519,1750272285082,164.79406157,0.0001911,2]
[366466520,1750272295927,-151.51287699,0.00019122,2]
[366466521,1750272315106,151.51287699,0.0001911,2]
[366466522,1750272331088,-321.57306144,0.00019122,2]
[366466523,1750272331110,-1951.93806592,0.00019157,2]
[366466524,1750272332340,-164.90024098,0.00019157,2]
[366466525,1750272346116,164.90024098,0.0001911,2]
[366466526,1750272347938,338.04,0.00018253,2]
[366466527,1750272350647,-190.84605584,0.00019123,2]
[366466528,1750272354105,-182.30191868,0.00019123,2]
[366466529,1750272361317,190.84605584,0.0001911,2]
[366466530,1750272395908,1917.1309082,0.00018997,2]
[366466531,1750272426544,328.98,0.00018241,2]
[366466532,1750272426954,657.97,0.00019109,2]
[366466534,1750272432235,258.371201,0.00013699,2]
[366466535,1750272434077,-2883.1616931,0.00019157,2]
[366466536,1750272434099,-390.530832,0.0001918,2]
[366466537,1750272434120,-210.6849129,0.0001918,2]
[366466538,1750272434140,-226.3546816,0.00019205,2]
[366466539,1750272434165,-1200.0,0.00019403,2]
[366466540,1750272434185,-2393.5837865,0.00019404,2]
[366466541,1750272434206,-196.1815304,0.00019758,2]
[366466542,1750272434229,-201.844795,0.00019827,2]
[366466543,1750272434250,-300.0,0.00019833,2]
[366466544,1750272434273,-1609.09270545,0.00019834,2]
[366466545,1750272434295,-300.0,0.00019834,2]
[366466546,1750272434317,-300.0,0.00019835,2]
[366466547,1750272434338,-300.0,0.00019835,2]
[366466548,1750272434359,-7298.8151954,0.00019837,2]
[366466549,1750272434383,-986.95,0.00019978,2]
[366466550,1750272434403,-2051.48613709,0.00020071,2]
[366466551,1750272434425,-258.371201,0.00020187,2]
[366466552,1750272434445,-530.1137733,0.0002033,2]
[366466553,1750272434467,-177.428,0.00020711,2]
[366466554,1750272434488,-299.91113061,0.00020711,2]
[366466555,1750272434512,-168.39379902,0.00020711,2]
[366466556,1750272434537,-35.32041659,0.00020711,2]
[366466557,1750272435081,-324.96560969,0.00020711,2]
[366466558,1750272445086,-139.71397372,0.00020711,2]
[366466559,1750272445110,-195.22970508,0.00020711,2]
[366466560,1750272445132,-500.0,0.00020711,2]
[366466561,1750272445153,-186.67474246,0.00020711,2]
[366466562,1750272445173,-230.73209323,0.00020711,2]
[366466563,1750272445196,-207.12313235,0.00020711,2]
[366466564,1750272445219,-500.0,0.00020711,2]
[366466565,1750272445246,-115.61944765,0.00020711,2]
[366466566,1750272507392,310.88,0.00018261,2]
[366466567,1750272508875,-309.15394416,0.0001913,2]
[366466568,1750272524377,309.15394416,0.0001911,2]
[366466570,1750272545112,-298.69085308,0.0001913,2]
[366466571,1750272586172,299.19,0.00018261,2]
[366466572,1750272587358,-500.0,0.0001913,2]
[366466573,1750272599329,500.0,0.0001911,2]
[366466574,1750272599918,-98.38,0.0001913,2]
[366466588,1750272632445,-194.24964106,0.000198,2]
[366466589,1750272632455,-897.57,0.0002,2]
[366466590,1750272632464,-1290.68018253,0.00020071,2]
[366466591,1750272632474,-293.0281551,0.00020611,2]
[366466592,1750272632483,-300.0,0.00020711,2]
[366466593,1750272632493,-1200.0,0.00020711,2]
[366466594,1750272632502,-180.0,0.00020711,2]
[366466595,1750272632512,-155.0,0.00020711,2]
[366466596,1750272632522,-24900.0,0.00020712,2]
[366466597,1750272632531,-159.26295419,0.00020799,2]
[366466598,1750272632541,-1196.76,0.0002087,2]
[366466599,1750272632551,-995.34856357,0.000209,2]
[366466600,1750272632560,-336.0,0.00021287,2]
[366466601,1750272632570,-168.0,0.00021323,2]
[366466602,1750272632580,-365.5483814,0.00021342,2]
[366466603,1750272632589,-365.5483814,0.00021342,2]
[366466604,1750272632599,-346.3191915,0.00021342,2]
[366466605,1750272632608,-365.5483814,0.0002137,2]
[366466606,1750272632618,-365.5483814,0.0002137,2]
[366466607,1750272632627,-365.5483814,0.0002137,2]
[366466608,1750272632636,-365.5483814,0.0002137,2]
[366466609,1750272632646,-365.5483814,0.0002137,2]
[366466610,1750272632655,-730.1222459,0.0002137,2]
[366466611,1750272632665,-317.7421866,0.000214,2]
[366466612,1750272632674,-336.0,0.00021459,2]
[366466613,1750272632686,-426.1728308,0.00021492,2]
[366466614,1750272632696,-159.26295418,0.00021515,2]
[366466615,1750272632706,-207.0,0.00021518,2]
[366466616,1750272632715,-365.5483814,0.00021541,2]
[366466617,1750272632725,-365.5483814,0.00021541,2]
[366466618,1750272632735,-168.0,0.0002158,2]
[366466619,1750272632745,-420.0,0.00021601,2]
[366466620,1750272632754,-336.0,0.00021628,2]
[366466621,1750272632763,-207.0,0.00021647,2]
[366466622,1750272632773,-168.0,0.00021671,2]
[366466623,1750272632782,-426.1728308,0.000217,2]
[366466625,1750272632792,-1495.94,0.00021739,2]
[366466627,1750272632802,-983.98152423,0.000219,6]
[366466629,1750272632811,-389.64,0.00021907,10]
[366466631,1750272632821,-324.7,0.00021907,10]
[366466633,1750272632831,-270.58,0.00021907,10]
[366466635,1750272632840,-160.0,0.00021916,2]
[366466637,1750272632849,-320.0,0.00021917,6]
[366466639,1750272632859,-390.0,0.00021917,6]
[366466641,1750272632868,-460.0,0.00021917,6]
[366466643,1750272632878,-460.0,0.00021917,6]
[366466645,1750272632888,-395.48678114,0.00021917,6]
[366466647,1750272632897,-460.0,0.00021917,6]
[366466649,1750272632906,-460.0,0.00021917,2]
[366466651,1750272632916,-460.0,0.00021917,6]
[366466653,1750272632926,-460.0,0.00021917,6]
[366466654,1750272632936,-500.0,0.00021917,6]
[366466657,1750272632946,-460.0,0.00021917,6]
[366466659,1750272632956,-460.0,0.00021917,6]
[366466661,1750272632966,-460.0,0.00021917,6]
[366466662,1750272632976,-460.0,0.00021917,6]
[366466663,1750272632986,-460.0,0.00021917,6]
[366466664,1750272632995,-460.0,0.00021917,6]
[366466667,1750272633005,-460.0,0.00021917,6]
[366466669,1750272633015,-460.0,0.00021917,6]
[366466670,1750272633025,-460.0,0.00021917,6]
[366466672,1750272633035,-506.13,0.00021917,6]
[366466675,1750272633046,-460.0,0.00021917,6]
[366466677,1750272633056,-460.0,0.00021917,6]
[366466679,1750272633066,-460.0,0.00021917,6]
[366466681,1750272633077,-460.0,0.00021917,6]
[366466683,1750272633087,-460.0,0.00021917,6]
[366466685,1750272633098,-460.0,0.00021917,6]
[366466686,1750272633108,-460.0,0.00021917,6]
[366466688,1750272633118,-340.0,0.00021917,6]
[366466690,1750272633128,-424.6511445,0.00021917,6]
[366466691,1750272633138,-460.0,0.00021917,6]
[366466692,1750272633148,-460.0,0.00021917,6]
[366466693,1750272633158,-460.0,0.00021917,6]
[366466694,1750272633169,-218.74280657,0.00021917,6]
[366466695,1750272633180,-460.0,0.00021917,6]
[366466696,1750272633191,-460.0,0.00021917,6]
[366466697,1750272633201,-460.0,0.00021917,6]
[366466698,1750272633211,-460.0,0.00021917,6]
[366466699,1750272633220,-460.0,0.00021917,6]
[366466700,1750272633230,-440.0,0.00021917,6]
[366466701,1750272633240,-341.45533301,0.00021917,6]
[366466702,1750272633250,-557.27772423,0.00021917,6]
[366466703,1750272633259,-460.0,0.00021917,6]
[366466705,1750272633269,-460.0,0.00021917,6]
[366466707,1750272633281,-307.17054922,0.00021917,6]
[366466709,1750272633291,-460.0,0.00021917,6]
[366466711,1750272633301,-460.0,0.00021917,6]
[366466713,1750272633311,-460.0,0.00021917,6]
[366466715,1750272633320,-460.0,0.00021917,6]
[366466717,1750272633331,-219.87000003,0.00021917,6]
[366466719,1750272633342,-460.0,0.00021917,6]
[366466721,1750272633352,-460.0,0.00021917,6]
[366466723,1750272633362,-460.0,0.00021917,6]
[366466725,1750272633372,-460.0,0.00021917,6]
[366466727,1750272633383,-460.0,0.00021917,6]
[366466729,1750272633392,-460.0,0.00021917,6]
[366466731,1750272633401,-503.25,0.00021917,6]
[366466733,1750272633411,-460.0,0.00021917,6]
[366466735,1750272633422,-460.0,0.00021917,6]
[366466737,1750272633431,-460.0,0.00021917,6]
[366466739,1750272633441,-460.0,0.00021917,6]
[366466741,1750272633452,-460.0,0.00021917,6]
[366466742,1750272633463,-460.0,0.00021917,6]
[366466744,1750272633473,-2842.39,0.00021917,6]
[366466746,1750272633483,-460.0,0.00021917,6]
[366466748,1750272633492,-460.0,0.00021917,6]
[366466750,1750272633503,-593.09,0.00021917,6]
[366466752,1750272633512,-500.0,0.00021917,6]
[366466754,1750272633522,-310.0,0.00021917,6]
[366466756,1750272633532,-460.0,0.00021917,6]
[366466758,1750272633541,-460.0,0.00021917,6]
[366466760,1750272633551,-460.0,0.00021917,6]
[366466762,1750272633560,-460.0,0.00021917,6]
[366466764,1750272633570,-460.0,0.00021917,6]
[366466766,1750272633579,-460.0,0.00021917,6]
[366466768,1750272633589,-460.0,0.00021917,6]
[366466770,1750272633599,-460.0,0.00021917,6]
[366466772,1750272633609,-804.7,0.00021917,6]
[366466774,1750272633619,-529.77,0.00021917,6]
[366466776,1750272633630,-460.0,0.00021917,6]
[366466778,1750272633639,-460.0,0.00021917,6]
[366466780,1750272633649,-460.0,0.00021917,6]
[366466782,1750272633659,-1706.55,0.00021917,6]
[366466784,1750272633668,-460.0,0.00021917,6]
[366466786,1750272633679,-460.0,0.00021917,6]
[366466788,1750272633690,-460.0,0.00021917,6]
[366466790,1750272633699,-460.0,0.00021917,2]
[366466792,1750272633708,-460.0,0.00021917,6]
[366466794,1750272633718,-2460.71,0.00021917,6]
[366466796,1750272633728,-460.0,0.00021917,6]
[366466798,1750272633737,-460.0,0.00021917,6]
[366466800,1750272633747,-390.0,0.00021917,6]
[366466801,1750272633756,-460.0,0.00021917,6]
[366466802,1750272633766,-460.0,0.00021917,6]
[366466803,1750272633776,-460.0,0.00021917,6]
[366466804,1750272633785,-460.0,0.00021917,6]
[366466805,1750272633795,-460.0,0.00021917,6]
[366466806,1750272633804,-460.0,0.00021917,6]
[366466807,1750272633814,-460.0,0.00021917,6]
[366466808,1750272633823,-993.12,0.00021917,6]
[366466809,1750272633833,-1285.09,0.00021917,6]
[366466810,1750272633843,-460.0,0.00021917,6]
[366466811,1750272633853,-460.0,0.00021917,6]
[366466812,1750272633863,-771.5,0.00021917,6]
[366466813,1750272633873,-460.0,0.00021917,6]
[366466814,1750272633883,-606.48,0.00021917,6]
[366466815,1750272633893,-460.0,0.00021917,6]
[366466816,1750272633903,-460.0,0.00021917,6]
[366466817,1750272633913,-460.0,0.00021917,6]
[366466818,1750272633923,-460.0,0.00021917,6]
[366466819,1750272633934,-460.0,0.00021917,6]
[366466820,1750272633944,-460.0,0.00021917,6]
[366466821,1750272633954,-460.0,0.00021917,6]
[366466822,1750272633963,-460.0,0.00021917,6]
[366466823,1750272633973,-460.0,0.00021917,6]
[366466824,1750272633982,-460.0,0.00021917,6]
[366466825,1750272633992,-460.0,0.00021917,6]
[366466826,1750272634002,-460.0,0.00021917,6]
[366466827,1750272634011,-460.0,0.00021917,6]
[366466828,1750272634020,-460.0,0.00021917,6]
[366466829,1750272634030,-460.0,0.00021917,6]
[366466830,1750272634039,-460.0,0.00021917,6]
[366466831,1750272634049,-460.0,0.00021917,6]
[366466832,1750272634058,-460.0,0.00021917,6]
[366466833,1750272634068,-460.0,0.00021917,6]
[366466834,1750272634077,-460.0,0.00021917,6]
[366466835,1750272634086,-521.02,0.00021917,6]
[366466836,1750272634095,-460.0,0.00021917,6]
[366466837,1750272634105,-460.0,0.00021917,6]
[366466838,1750272634116,-460.0,0.00021917,6]
[366466839,1750272634125,-906.52,0.00021917,6]
[366466840,1750272634135,-460.0,0.00021917,6]
[366466841,1750272634145,-744.18,0.00021917,6]
[366466842,1750272634155,-1613.19,0.00021917,6]
[366466843,1750272634164,-460.0,0.00021917,6]
[366466844,1750272634175,-460.0,0.00021917,6]
[366466845,1750272634188,-227.66876492,0.00021917,6]
[366466846,1750272634198,-1165.63,0.00021917,6]
[366466847,1750272634209,-460.0,0.00021917,6]
[366466848,1750272634220,-460.0,0.00021917,6]
[366466849,1750272634231,-320.0,0.00021917,6]
[366466850,1750272634242,-460.0,0.00021917,6]
[366466851,1750272634253,-460.0,0.00021917,6]
[366466852,1750272634264,-460.0,0.00021917,6]
[366466853,1750272634277,-460.0,0.00021917,6]
[366466854,1750272634292,-460.0,0.00021917,6]
[366466855,1750272634306,-400.0,0.00021917,6]
[366466856,1750272634317,-460.0,0.00021917,6]
[366466857,1750272634330,-460.0,0.00021917,6]
[366466858,1750272634340,-460.0,0.00021917,6]
[366466859,1750272634351,-460.0,0.00021917,6]
[366466860,1750272634362,-460.0,0.00021917,6]
[366466861,1750272634374,-460.0,0.00021917,6]
[366466862,1750272634386,-460.0,0.00021917,6]
[366466863,1750272634396,-460.0,0.00021917,6]
[366466864,1750272634405,-460.0,0.00021917,6]
[366466865,1750272634416,-460.0,0.00021917,6]
[366466866,1750272634427,-310.0,0.00021917,6]
[366466867,1750272634442,-460.0,0.00021917,6]
[366466868,1750272634451,-497.99,0.00021917,6]
[366466869,1750272634460,-460.0,0.00021917,6]
[366466870,1750272634470,-460.0,0.00021917,6]
[366466871,1750272634480,-310.0,0.00021917,6]
[366466872,1750272634490,-460.0,0.00021917,6]
[366466873,1750272634500,-882.83,0.00021917,6]
[366466874,1750272634510,-460.0,0.00021917,6]
[366466875,1750272634520,-460.0,0.00021917,6]
[366466876,1750272634530,-460.0,0.00021917,6]
[366466877,1750272634540,-460.0,0.00021917,6]
[366466878,1750272634550,-460.0,0.00021917,6]
[366466879,1750272634559,-460.0,0.00021917,6]
[366466880,1750272634569,-571.69,0.00021917,6]
[366466881,1750272634579,-1235.82,0.00021917,6]
[366466882,1750272634589,-4634.08,0.00021917,6]
[366466883,1750272634599,-310.0,0.00021917,6]
[366466884,1750272634608,-460.0,0.00021917,6]
[366466885,1750272634757,-2080.06,0.00021917,6]
[366466886,1750272634767,-522.41,0.00021917,6]
[366466887,1750272634776,-460.0,0.00021917,6]
[366466888,1750272634786,-460.0,0.00021917,6]
[366466889,1750272634795,-460.0,0.00021917,6]
[366466890,1750272634805,-2383.79,0.00021917,6]
[366466891,1750272634814,-460.0,0.00021917,6]
[366466892,1750272634823,-460.0,0.00021917,6]
[366466893,1750272634832,-500.0,0.00021973,2]
[366466894,1750272634842,-512.830546,0.00021973,2]
[366466895,1750272634851,-160.0,0.00021976,2]
[366466896,1750272634861,-159.0,0.00022,2]
[366466897,1750272634870,-4425.0,0.00022029,2]
[366466898,1750272634880,-749.0,0.00022031,3]
[366466899,1750272634889,-249.66,0.00022031,3]
[366466900,1750272634898,-983.98152419,0.00022038,6]
[366466901,1750272634908,-213.43818883,0.00022041,2]
[366466902,1750272634918,-12542.39314967,0.00022041,2]
[366466903,1750272634927,-426.1728308,0.00022088,2]
[366466904,1750272634939,-294.91100484,0.00022091,2]
[366466905,1750272634948,-168.0,0.00022104,2]
[366466906,1750272634958,-500.0,0.00022173,2]
[366466907,1750272634967,-983.98152419,0.00022176,6]
[366466908,1750272634977,-160.0,0.00022189,2]
[366466909,1750272634986,-2499.42,0.0002219,6]
[366466910,1750272634995,-993.27,0.0002219,6]
[366466911,1750272635005,-460.0,0.0002219,6]
[366466912,1750272635015,-460.0,0.0002219,6]
[366466913,1750272635025,-460.0,0.00022191,6]
[366466914,1750272635035,-460.0,0.00022191,2]
[366466915,1750272635044,-460.0,0.00022191,6]
[366466916,1750272635053,-460.0,0.00022191,6]
[366466917,1750272635063,-460.0,0.00022191,6]
[366466918,1750272635073,-460.0,0.00022191,6]
[366466919,1750272635082,-460.0,0.00022191,6]
[366466920,1750272635092,-460.0,0.00022191,6]
[366466921,1750272635102,-460.0,0.00022191,6]
[366466922,1750272635111,-460.0,0.00022191,6]
[366466923,1750272635121,-506.13,0.00022191,6]
[366466924,1750272635131,-460.0,0.00022191,6]
[366466925,1750272635140,-460.0,0.00022191,6]
[366466926,1750272635150,-460.0,0.00022191,6]
[366466927,1750272635159,-554.18135878,0.00022191,6]
[366466928,1750272635169,-460.0,0.00022191,6]
[366466929,1750272635179,-460.0,0.00022191,6]
[366466930,1750272635191,-460.0,0.00022191,6]
[366466931,1750272635201,-460.0,0.00022191,6]
[366466932,1750272635211,-152.88324414,0.00022191,6]
[366466933,1750272635220,-460.0,0.00022191,6]
[366466934,1750272635230,-460.0,0.00022191,6]
[366466935,1750272635239,-460.0,0.00022191,6]
[366466936,1750272635249,-460.0,0.00022191,6]
[366466937,1750272635258,-460.0,0.00022191,6]
[366466938,1750272635267,-460.0,0.00022191,6]
[366466939,1750272635278,-503.25,0.00022191,6]
[366466940,1750272635291,-460.0,0.00022191,6]
[366466941,1750272635300,-2842.39,0.00022191,6]
[366466942,1750272635309,-460.0,0.00022191,6]
[366466943,1750272635319,-460.0,0.00022191,6]
[366466944,1750272635330,-593.09,0.00022191,6]
[366466945,1750272635339,-460.0,0.00022191,6]
[366466946,1750272635349,-326.66862194,0.00022191,6]
[366466947,1750272635360,-460.0,0.00022191,6]
[366466948,1750272635370,-460.0,0.00022191,6]
[366466949,1750272635380,-230.0,0.00022191,6]
[366466950,1750272635389,-804.7,0.00022191,6]
[366466951,1750272635399,-529.77,0.00022191,6]
[366466952,1750272635409,-460.0,0.00022191,6]
[366466953,1750272635419,-460.0,0.00022191,6]
[366466954,1750272635428,-1706.55,0.00022191,6]
[366466955,1750272635441,-460.0,0.00022191,6]
[366466956,1750272635450,-460.0,0.00022191,6]
[366466957,1750272635460,-460.0,0.00022191,6]
[366466958,1750272635470,-327.48304227,0.00022191,2]
[366466959,1750272635487,-72.51695773,0.00022191,2]
[366466960,1750272635497,-460.0,0.00022191,6]
[366466961,1750272635507,-2460.71,0.00022191,6]
[366466962,1750272635516,-460.0,0.00022191,6]
[366466963,1750272635526,-460.0,0.00022191,6]
[366466964,1750272635536,-522.98248225,0.00022191,6]
[366466965,1750272635546,-312.00359415,0.00022191,6]
[366466966,1750272635556,-460.0,0.00022191,6]
[366466967,1750272635566,-993.12,0.00022191,6]
[366466968,1750272635577,-1285.09,0.00022191,6]
[366466969,1750272635586,-460.0,0.00022191,6]
[366466970,1750272635596,-460.0,0.00022191,6]
[366466971,1750272635605,-771.5,0.00022191,6]
[366466972,1750272635615,-606.48,0.00022191,6]
[366466973,1750272635626,-460.0,0.00022191,6]
[366466974,1750272635636,-460.0,0.00022191,6]
[366466975,1750272635646,-460.0,0.00022191,6]
[366466976,1750272635655,-460.0,0.00022191,6]
[366466977,1750272635664,-460.0,0.00022191,6]
[366466978,1750272635674,-460.0,0.00022191,6]
[366466979,1750272635685,-545.36606361,0.00022191,6]
[366466980,1750272635694,-460.0,0.00022191,6]
[366466981,1750272635704,-460.0,0.00022191,6]
[366466982,1750272635715,-460.0,0.00022191,6]
[366466983,1750272635724,-460.0,0.00022191,6]
[366466984,1750272635734,-460.0,0.00022191,6]
[366466985,1750272635744,-460.0,0.00022191,6]
[366466986,1750272635754,-460.0,0.00022191,6]
[366466987,1750272635763,-460.0,0.00022191,6]
[366466988,1750272635773,-460.0,0.00022191,6]
[366466989,1750272635782,-521.02,0.00022191,6]
[366466990,1750272635795,-460.0,0.00022191,6]
[366466991,1750272635804,-906.52,0.00022191,6]
[366466992,1750272635814,-744.18,0.00022191,6]
[366466993,1750272635823,-1613.19,0.00022191,6]
[366466994,1750272635833,-1165.63,0.00022191,6]
[366466995,1750272635843,-460.0,0.00022191,6]
[366466996,1750272635853,-460.0,0.00022191,6]
[366466997,1750272635862,-460.0,0.00022191,6]
[366466998,1750272635872,-460.0,0.00022191,6]
[366466999,1750272635881,-460.0,0.00022191,6]
[366467000,1750272635892,-460.0,0.00022191,6]
[366467001,1750272635901,-460.0,0.00022191,6]
[366467002,1750272635910,-460.0,0.00022191,6]
[366467003,1750272635919,-460.0,0.00022191,6]
[366467004,1750272635928,-460.0,0.00022191,6]
[366467005,1750272635939,-497.99,0.00022191,6]
[366467006,1750272635949,-460.0,0.00022191,6]
[366467007,1750272635958,-882.83,0.00022191,6]
[366467008,1750272635968,-460.0,0.00022191,6]
[366467009,1750272635978,-460.0,0.00022191,6]
[366467010,1750272635987,-460.0,0.00022191,6]
[366467011,1750272635997,-460.0,0.00022191,6]
[366467012,1750272636007,-460.0,0.00022191,6]
[366467013,1750272636017,-4634.08,0.00022191,6]
[366467014,1750272636026,-571.69,0.00022191,6]
[366467015,1750272636035,-1235.82,0.00022191,6]
[366467016,1750272636043,-2080.06,0.00022191,6]
[366467017,1750272636053,-522.41,0.00022191,6]
[366467018,1750272636063,-460.0,0.00022191,6]
[366467019,1750272636072,-460.0,0.00022191,6]
[366467020,1750272636081,-460.0,0.00022191,6]
[366467021,1750272636091,-2383.79,0.00022191,6]
[366467022,1750272636101,-460.0,0.00022191,6]
[366467023,1750272636110,-90486.67,0.000222,7]
[366467024,1750272636120,-151.0,0.000222,7]
[366467025,1750272636129,-202.770185,0.000222,7]
[366467026,1750272636139,-151.0,0.000222,7]
[366467027,1750272636148,-151.0,0.000222,7]
[366467028,1750272636158,-151.0,0.000222,7]
[366467029,1750272636167,-277.645861,0.000222,7]
[366467030,1750272636176,-151.0,0.000222,7]
[366467031,1750272636185,-151.0,0.000222,7]
[366467032,1750272636195,-151.0,0.000222,7]
[366467033,1750272636203,-151.0,0.000222,7]
[366467034,1750272636213,-160.0,0.000222,7]
[366467035,1750272636222,-151.0,0.000222,7]
[366467036,1750272636232,-151.029388,0.000222,7]
[366467037,1750272636241,-151.0,0.000222,7]
[366467038,1750272636250,-151.0,0.000222,7]
[366467039,1750272636259,-151.0,0.000222,7]
[366467040,1750272636269,-151.0,0.000222,7]
[366467041,1750272636279,-151.0,0.000222,7]
[366467042,1750272636291,-249.765325,0.000222,2]
[366467043,1750272636300,-249.765325,0.000222,2]
[366467044,1750272636309,-170.855578,0.000222,7]
[366467045,1750272636319,-170.855578,0.000222,7]